fUSD/lending_fUSD_20240517
["ID","MTS","AMOUNT","RATE_DAILY","PERIOD"]
[327239901,1715911843616,-178.32876117,0.000129,2]
[327239903,1715911843626,-166.22958828,0.000129,2]
[327239905,1715911843637,-166.22958824,0.000129,2]
[327239907,1715911843648,-166.22958824,0.000129,2]
[327239909,1715911843658,-166.22958824,0.000129,2]
[327239911,1715911843669,-166.22958824,0.000129,2]
[327239914,1715911843680,-166.22958824,0.000129,2]
[327239916,1715911843692,-155.14529835,0.00012928,2]
[327239918,1715911843703,-1029.0,0.00012936,2]
[327239920,1715911843713,-837.0,0.00012936,2]
[327239922,1715911843723,-150.0,0.00012986,2]
[327239924,1715911843734,-150.0,0.00012986,2]
[327239927,1715911843745,-150.0,0.00012986,2]
[327239929,1715911843755,-150.0,0.00012986,2]
[327239931,1715911843766,-150.0,0.00012986,2]
[327239933,1715911843776,-311.0,0.0001299,2]
[327239935,1715911843789,-500.0,0.0001299,2]
[327239937,1715911843800,-753.22,0.0001299,2]
[327239939,1715911843810,-752.58,0.0001299,2]
[327239942,1715911843820,-500.0,0.0001299,2]
[327239944,1715911843831,-2326.24,0.0001299,2]
[327239946,1715911843845,-500.0,0.0001299,2]
[327239948,1715911843855,-652.24,0.0001299,2]
[327239950,1715911843866,-500.0,0.0001299,2]
[327239952,1715911843879,-500.0,0.0001299,2]
[327239955,1715911843890,-707.12,0.0001299,2]
[327239957,1715911843901,-500.0,0.0001299,2]
[327239959,1715911843912,-500.0,0.0001299,2]
[327239961,1715911843924,-398.46373698,0.0001299,2]
[327239964,1715911843935,-500.0,0.0001299,2]
[327239966,1715911843945,-500.0,0.0001299,2]
[327239968,1715911843956,-500.0,0.0001299,2]
[327239970,1715911843966,-500.0,0.0001299,2]
[327239972,1715911843977,-500.0,0.0001299,2]
[327239974,1715911843988,-500.0,0.0001299,2]
[327239977,1715911843999,-500.0,0.0001299,2]
[327239979,1715911844009,-160.0,0.0001299,2]
[327239981,1715911844020,-9712.3834939,0.00012991,2]
[327239983,1715911844031,-7497.3905899,0.00012991,2]
[327239985,1715911844041,-5282.3976859,0.00012991,2]
[327239987,1715911844053,-3067.4047819,0.00012991,2]
[327239989,1715911844064,-852.411878,0.00012991,2]
[327239991,1715911844074,-18123.5139947,0.00012991,2]
[327239993,1715911844083,-13990.2901657,0.00012991,2]
[327239995,1715911844093,-9857.0663367,0.00012991,2]
[327239997,1715911844102,-5723.8425077,0.00012991,2]
[327239999,1715911844112,-1590.6186787,0.00012991,2]
[327240001,1715911844121,-7623.7883968,0.00012991,2]
[327240003,1715911844131,-2910.95460677,0.00012991,2]
[327240020,1715911844634,-2974.16302903,0.00012991,2]
[327240021,1715911844643,-4084.13697097,0.00012991,2]
[327240022,1715911844656,-62.30990383,0.00012991,2]
[327240023,1715911844667,-2407.7761138,0.00012991,2]
[327240024,1715911844676,-669.1053528,0.00012991,2]
[327240025,1715911844685,-2160.40454617,0.00012991,2]
[327240026,1715911844696,-83.88514603,0.00012991,2]
[327240027,1715911844705,-578.59295302,0.00012991,2]
[327240028,1715911844716,-922.8938064,0.00012991,2]
[327240029,1715911844728,-230.97329318,0.00012991,2]
[327240030,1715911844737,-1041.87567821,0.00012991,2]
[327240031,1715911844760,-178.75473489,0.00012991,2]
[327240032,1715911844770,-78.22482219,0.00012991,2]
[327240033,1715911844781,-630.57595141,0.00012991,2]
[327240034,1715911844791,-196.971134,0.00012991,2]
[327240035,1715911844801,-48.00251112,0.00012993,2]
[327240036,1715911844813,-252.43701998,0.00012993,2]
[327240037,1715911844839,-973.28519648,0.00012993,2]
[327240038,1715911844855,-176.75590354,0.00012993,2]
[327240039,1715911844865,-300.0,0.00012993,2]
[327240040,1715911844876,-3649.381,0.00012994,2]
[327240041,1715911844888,-705.0,0.00012994,2]
[327240042,1715911844898,-500.0,0.00012994,2]
[327240043,1715911844907,-500.0,0.00012994,2]
[327240044,1715911844917,-489.73366503,0.00012994,2]
[327240045,1715911844927,-610.44379044,0.00012994,2]
[327240046,1715911844938,-500.0,0.00012994,2]
[327240047,1715911844947,-500.0,0.00012994,2]
[327240048,1715911844958,-500.0,0.00012994,2]
[327240049,1715911844969,-2326.24,0.00012994,2]
[327240050,1715911844979,-2326.24,0.00012994,2]
[327240051,1715911844988,-500.0,0.00012994,2]
[327240052,1715911844999,-500.0,0.00012994,2]
[327240053,1715911845008,-652.24,0.00012994,2]
[327240054,1715911845019,-652.24,0.00012994,2]
[327240055,1715911845030,-347.89896587,0.00012994,2]
[327240056,1715911845039,-500.0,0.00012994,2]
[327240057,1715911845048,-500.0,0.00012994,2]
[327240058,1715911845058,-500.0,0.00012994,2]
[327240059,1715911845068,-500.0,0.00012994,2]
[327240060,1715911845078,-500.0,0.00012994,2]
[327240061,1715911845088,-707.12,0.00012994,2]
[327240062,1715911845098,-707.12,0.00012994,2]
[327240063,1715911845109,-500.0,0.00012994,2]
[327240064,1715911845118,-500.0,0.00012994,2]
[327240065,1715911845127,-500.0,0.00012994,2]
[327240066,1715911845138,-198.82092194,0.00012994,2]
[327240067,1715911845148,-196.09301106,0.00012994,2]
[327240068,1715911845157,-500.0,0.00012994,2]
[327240069,1715911845166,-500.0,0.00012994,2]
[327240070,1715911845175,-637.8321701,0.00012994,2]
[327240071,1715911845184,-500.0,0.00012994,2]
[327240072,1715911845195,-500.0,0.00012994,2]
[327240073,1715911845204,-500.0,0.00012994,2]
[327240074,1715911845214,-500.0,0.00012994,2]
[327240075,1715911845224,-500.0,0.00012994,2]
[327240076,1715911845234,-500.0,0.00012994,2]
[327240077,1715911845243,-500.0,0.00012994,2]
[327240078,1715911845252,-500.0,0.00012994,2]
[327240079,1715911845262,-500.0,0.00012994,2]
[327240080,1715911845271,-500.0,0.00012994,2]
[327240081,1715911845280,-179.4215169,0.00012994,2]
[327240082,1715911845289,-500.0,0.00012994,2]
[327240083,1715911845298,-377.06,0.00012994,2]
[327240084,1715911845307,-500.0,0.00012994,2]
[327240085,1715911845316,-500.0,0.00012994,2]
[327240086,1715911845326,-256.77442356,0.00012994,2]
[327240087,1715911845335,-500.0,0.00012994,2]
[327240088,1715911845343,-500.0,0.00012994,2]
[327240089,1715911845352,-624.27131899,0.00012994,2]
[327240090,1715911845362,-500.0,0.00012994,2]
[327240091,1715911845371,-500.0,0.00012994,2]
[327240092,1715911845380,-500.0,0.00012994,2]
[327240093,1715911845389,-424.86428296,0.00012994,2]
[327240094,1715911845399,-9990.77073583,0.00012995,2]
[327240095,1715911845412,-696.2,0.00012995,2]
[327240096,1715911845423,-4896.92,0.00012995,2]
[327240097,1715911845596,-2558.4641,0.00010646,2]
[327240098,1715911845605,-652.69050721,0.00012895,2]
[327240099,1715911845615,-19697.15609074,0.00012995,2]
[327240100,1715911845626,-6540.0,0.00012995,2]
[327240101,1715911845639,-1104.6360013,0.00012995,2]
[327240102,1715911845650,-916.32042007,0.00012995,2]
[327240103,1715911845662,-35333.77735331,0.00012995,2]
[327240104,1715911845674,-646.1708148,0.00012995,2]
[327240105,1715911845685,-1883.65102,0.00012995,2]
[327240106,1715911845699,-395.24694961,0.00012995,2]
[327240107,1715911845731,-475026.0221689,0.00012995,2]
[327240108,1715911845740,-189.92579261,0.00012995,2]
[327240109,1715911845749,-279.82704078,0.00012995,2]
[327240110,1715911845759,-337.03850568,0.00012995,2]
[327240111,1715911845768,-298.91789347,0.00012995,2]
[327240112,1715911845779,-1214.96485855,0.00012995,2]
[327240113,1715911845789,-155.97294436,0.00012995,2]
[327240114,1715911845800,-177.17841491,0.00012995,2]
[327240115,1715911845809,-238.176496,0.00012995,2]
[327240116,1715911845820,-151.0,0.00012995,2]
[327240117,1715911845830,-151.0,0.00012995,2]
[327240118,1715911845846,-151.0,0.00012995,2]
[327240119,1715911845856,-183.394449,0.00012995,2]
[327240120,1715911845866,-183.394449,0.00012995,2]
[327240121,1715911845876,-162.981365,0.00012995,2]
[327240122,1715911845888,-151.0,0.00012995,2]
[327240123,1715911845898,-162.981365,0.00012995,2]
[327240124,1715911845907,-151.0,0.00012995,2]
[327240125,1715911845917,-151.941381,0.00012995,2]
[327240126,1715911845926,-151.0,0.00012995,2]
[327240127,1715911845937,-151.0,0.00012995,2]
[327240128,1715911845946,-151.0,0.00012995,2]
[327240129,1715911845955,-151.0,0.00012995,2]
[327240130,1715911845965,-151.0,0.00012995,2]
[327240131,1715911845974,-151.0,0.00012995,2]
[327240132,1715911845983,-169.215411,0.00012995,2]
[327240133,1715911845992,-151.0,0.00012995,2]
[327240134,1715911846001,-500.0,0.00012995,2]
[327240135,1715911846011,-500.0,0.00012995,2]
[327240136,1715911846020,-151.0,0.00012995,2]
[327240137,1715911846030,-151.0,0.00012995,2]
[327240138,1715911846040,-500.0,0.00012995,2]
[327240139,1715911846049,-652.24,0.00012995,2]
[327240140,1715911846059,-500.0,0.00012995,2]
[327240141,1715911846068,-258.571769,0.00012995,2]
[327240142,1715911846078,-500.0,0.00012995,2]
[327240143,1715911846087,-500.0,0.00012995,2]
[327240144,1715911846096,-707.12,0.00012995,2]
[327240145,1715911846106,-258.571769,0.00012995,2]
[327240146,1715911846115,-500.0,0.00012995,2]
[327240147,1715911846124,-151.0,0.00012995,2]
[327240148,1715911846135,-500.0,0.00012995,2]
[327240149,1715911846144,-500.0,0.00012995,2]
[327240150,1715911846153,-500.0,0.00012995,2]
[327240151,1715911846162,-500.0,0.00012995,2]
[327240152,1715911846171,-500.0,0.00012995,2]
[327240153,1715911846181,-500.0,0.00012995,2]
[327240154,1715911846190,-153.641621,0.00012995,2]
[327240155,1715911846199,-500.0,0.00012995,2]
[327240156,1715911846209,-500.0,0.00012995,2]
[327240157,1715911846222,-151.0,0.00012995,2]
[327240158,1715911846232,-3098.39820691,0.00012996,2]
[327240159,1715911846241,-4036.17945536,0.00012996,2]
[327240160,1715911846252,-706.77146811,0.00012996,2]
[327240161,1715911846263,-241.32464787,0.00012996,2]
[327240162,1715911846272,-360.07431444,0.00012996,2]
[327240163,1715911846283,-227.6959278,0.00012996,2]
[327240164,1715911846296,-2004.91790743,0.00012996,2]
[327240165,1715911846307,-168.12857993,0.00012996,2]
[327240166,1715911846318,-155.3721122,0.00012996,2]
[327240167,1715911846329,-3036.35144218,0.00012996,2]
[327240168,1715911846339,-215.52577319,0.00012996,2]
[327240169,1715911846349,-33753.02724589,0.00012996,2]
[327240170,1715911846360,-500.0,0.00012996,2]
[327240171,1715911846371,-477.62241213,0.00012996,2]
[327240172,1715911846381,-889.36875953,0.00012996,2]
[327240173,1715911846391,-151.0,0.00012996,2]
[327240174,1715911846401,-151.0,0.00012996,2]
[327240175,1715911846411,-11927.3763978,0.00012996,2]
[327240176,1715911846420,-151.0,0.00012996,2]
[327240177,1715911846431,-151.0,0.00012996,2]
[327240178,1715911846442,-151.0,0.00012996,2]
[327240179,1715911846451,-216.052525,0.00012996,2]
[327240180,1715911846461,-151.0,0.00012996,2]
[327240181,1715911846472,-262.75219124,0.00012996,2]
[327240182,1715911846482,-2326.24,0.00012996,2]
[327240183,1715911846491,-2326.24,0.00012996,2]
[327240184,1715911846501,-2326.24,0.00012996,2]
[327240185,1715911846510,-2326.24,0.00012996,2]
[327240186,1715911846519,-2326.24,0.00012996,2]
[327240187,1715911846529,-2326.24,0.00012996,2]
[327240188,1715911846539,-159.556537,0.00012996,2]
[327240189,1715911846549,-151.0,0.00012996,2]
[327240190,1715911846560,-500.0,0.00012996,2]
[327240191,1715911846571,-500.0,0.00012996,2]
[327240192,1715911846581,-500.0,0.00012996,2]
[327240193,1715911846590,-500.0,0.00012996,2]
[327240194,1715911846601,-500.0,0.00012996,2]
[327240195,1715911846611,-652.24,0.00012996,2]
[327240196,1715911846621,-652.24,0.00012996,2]
[327240197,1715911846631,-652.24,0.00012996,2]
[327240198,1715911846641,-652.24,0.00012996,2]
[327240199,1715911846651,-652.24,0.00012996,2]
[327240200,1715911846660,-500.0,0.00012996,2]
[327240201,1715911846669,-500.0,0.00012996,2]
[327240202,1715911846679,-500.0,0.00012996,2]
[327240203,1715911846688,-500.0,0.00012996,2]
[327240204,1715911846699,-500.0,0.00012996,2]
[327240205,1715911846709,-258.571769,0.00012996,2]
[327240206,1715911846719,-500.0,0.00012996,2]
[327240207,1715911846729,-500.0,0.00012996,2]
[327240208,1715911846738,-500.0,0.00012996,2]
[327240209,1715911846747,-425.26001581,0.00012996,2]
[327240210,1715911846756,-707.12,0.00012996,2]
[327240211,1715911846765,-707.12,0.00012996,2]
[327240212,1715911846774,-707.12,0.00012996,2]
[327240213,1715911846783,-707.12,0.00012996,2]
[327240214,1715911846792,-707.12,0.00012996,2]
[327240215,1715911846802,-258.571769,0.00012996,2]
[327240216,1715911846811,-500.0,0.00012996,2]
[327240217,1715911846822,-500.0,0.00012996,2]
[327240218,1715911846831,-500.0,0.00012996,2]
[327240219,1715911846844,-500.0,0.00012996,2]
[327240220,1715911846854,-500.0,0.00012996,2]
[327240221,1715911846863,-280.035695,0.00012996,2]
[327240222,1715911846873,-500.0,0.00012996,2]
[327240223,1715911846884,-500.0,0.00012996,2]
[327240224,1715911846894,-365.7149,0.00012996,2]
[327240225,1715911846903,-500.0,0.00012996,2]
[327240226,1715911846913,-500.0,0.00012996,2]
[327240227,1715911846925,-500.0,0.00012996,2]
[327240228,1715911846936,-500.0,0.00012996,2]
[327240229,1715911846945,-500.0,0.00012996,2]
[327240230,1715911846955,-500.0,0.00012996,2]
[327240231,1715911846964,-500.0,0.00012996,2]
[327240232,1715911846974,-500.0,0.00012996,2]
[327240233,1715911846984,-500.0,0.00012996,2]
[327240234,1715911846993,-500.0,0.00012996,2]
[327240235,1715911847003,-500.0,0.00012996,2]
[327240236,1715911847012,-500.0,0.00012996,2]
[327240237,1715911847022,-248.10630109,0.00012996,2]
[327240238,1715911847031,-500.0,0.00012996,2]
[327240239,1715911847041,-500.0,0.00012996,2]
[327240240,1715911847051,-500.0,0.00012996,2]
[327240241,1715911847060,-500.0,0.00012996,2]
[327240242,1715911847070,-500.0,0.00012996,2]
[327240243,1715911847079,-500.0,0.00012996,2]
[327240244,1715911847088,-384.82819539,0.00012996,2]
[327240245,1715911847098,-151.0,0.00012996,2]
[327240246,1715911847107,-434979.98422793,0.00012996,2]
[327240247,1715911847117,-1350859.29575339,0.00012997,2]
[327240248,1715911847126,-151.0,0.00012997,2]
[327240249,1715911847138,-151.0,0.00012997,2]
[327240250,1715911847147,-151.0,0.00012997,2]
[327240251,1715911847157,-151.0,0.00012997,2]
[327240252,1715911847166,-183.394449,0.00012997,2]
[327240253,1715911847175,-183.394449,0.00012997,2]
[327240254,1715911847185,-162.981365,0.00012997,2]
[327240255,1715911847194,-151.0,0.00012997,2]
[327240256,1715911847204,-162.981365,0.00012997,2]
[327240257,1715911847213,-151.0,0.00012997,2]
[327240258,1715911847222,-152.236128,0.00012997,2]
[327240259,1715911847231,-151.0,0.00012997,2]
[327240260,1715911847240,-151.0,0.00012997,2]
[327240261,1715911847250,-151.0,0.00012997,2]
[327240262,1715911847259,-151.0,0.00012997,2]
[327240263,1715911847269,-157.051711,0.00012997,2]
[327240264,1715911847279,-157.051711,0.00012997,2]
[327240265,1715911847288,-151.0,0.00012997,2]
[327240266,1715911847298,-151.0,0.00012997,2]
[327240267,1715911847307,-258.571769,0.00012997,2]
[327240268,1715911847317,-258.571769,0.00012997,2]
[327240269,1715911847326,-151.0,0.00012997,2]
[327240270,1715911847336,-3065.16719752,0.00012998,2]
[327240271,1715911847345,-500.0,0.00012998,2]
[327240272,1715911847355,-753.22,0.00012998,2]
[327240273,1715911847364,-752.58,0.00012998,2]
[327240274,1715911847373,-500.0,0.00012998,2]
[327240275,1715911847384,-500.0,0.00012998,2]
[327240276,1715911847393,-157.051711,0.00012998,2]
[327240277,1715911847403,-157.051711,0.00012998,2]
[327240278,1715911847412,-157.051711,0.00012998,2]
[327240279,1715911847421,-2326.24,0.00012998,2]
[327240280,1715911847430,-500.0,0.00012998,2]
[327240281,1715911847439,-500.0,0.00012998,2]
[327240282,1715911847448,-500.0,0.00012998,2]
[327240283,1715911847458,-652.24,0.00012998,2]
[327240284,1715911847467,-652.24,0.00012998,2]
[327240285,1715911847476,-652.24,0.00012998,2]
[327240286,1715911847485,-474.6855334,0.00012998,2]
[327240287,1715911847495,-707.12,0.00012998,2]
[327240288,1715911847503,-707.12,0.00012998,2]
[327240289,1715911847513,-707.12,0.00012998,2]
[327240290,1715911847522,-445.05688415,0.00012998,2]
[327240291,1715911847531,-500.0,0.00012998,2]
[327240292,1715911847540,-500.0,0.00012998,2]
[327240293,1715911847550,-500.0,0.00012998,2]
[327240294,1715911847560,-559.05752025,0.00012998,2]
[327240295,1715911847571,-300.6430529,0.00012999,2]
[327240296,1715911847581,-5865.7372962,0.00012999,2]
[327240297,1715911847590,-209.11110139,0.00012999,2]
[327240298,1715911847600,-500.0,0.00012999,2]
[327240299,1715911847784,-500.0,0.00012999,2]
[327240300,1715911847794,-500.0,0.00012999,2]
[327240301,1715911847804,-524.65,0.00012999,2]
[327240302,1715911847815,-753.22,0.00012999,2]
[327240303,1715911847826,-753.22,0.00012999,2]
[327240304,1715911847837,-753.22,0.00012999,2]
[327240305,1715911847848,-753.22,0.00012999,2]
[327240306,1715911847858,-753.22,0.00012999,2]
[327240307,1715911847868,-753.22,0.00012999,2]
[327240308,1715911847882,-753.22,0.00012999,2]
[327240309,1715911847891,-753.22,0.00012999,2]
[327240310,1715911847900,-753.22,0.00012999,2]
[327240311,1715911847910,-753.22,0.00012999,2]
[327240312,1715911847921,-753.22,0.00012999,2]
[327240313,1715911847931,-753.22,0.00012999,2]
[327240314,1715911847942,-753.22,0.00012999,2]
[327240315,1715911847953,-753.22,0.00012999,2]
[327240316,1715911847963,-753.22,0.00012999,2]
[327240317,1715911847973,-753.22,0.00012999,2]
[327240318,1715911847983,-753.22,0.00012999,2]
[327240319,1715911847993,-753.22,0.00012999,2]
[327240320,1715911848003,-753.22,0.00012999,2]
[327240321,1715911848013,-753.41703593,0.00012999,2]
[327240322,1715911848024,-151.0,0.00012999,2]
[327240323,1715911848034,-151.0,0.00012999,2]
[327240324,1715911848044,-163.532524,0.00012999,2]
[327240325,1715911848055,-752.58,0.00012999,2]
[327240326,1715911848066,-752.58,0.00012999,2]
[327240327,1715911848076,-752.58,0.00012999,2]
[327240328,1715911848087,-752.58,0.00012999,2]
[327240329,1715911848098,-183.394449,0.00012999,2]
[327240330,1715911848107,-752.58,0.00012999,2]
[327240331,1715911848119,-752.58,0.00012999,2]
[327240332,1715911848129,-752.58,0.00012999,2]
[327240333,1715911848138,-752.58,0.00012999,2]
[327240334,1715911848148,-752.58,0.00012999,2]
[327240335,1715911848157,-752.58,0.00012999,2]
[327240336,1715911848166,-752.58,0.00012999,2]
[327240337,1715911848176,-752.58,0.00012999,2]
[327240338,1715911848185,-752.58,0.00012999,2]
[327240339,1715911848195,-752.58,0.00012999,2]
[327240340,1715911848205,-183.394449,0.00012999,2]
[327240341,1715911848214,-752.58,0.00012999,2]
[327240342,1715911848223,-752.58,0.00012999,2]
[327240343,1715911848233,-752.58,0.00012999,2]
[327240344,1715911848243,-752.58,0.00012999,2]
[327240345,1715911848252,-752.58,0.00012999,2]
[327240346,1715911848262,-752.71354231,0.00012999,2]
[327240347,1715911848271,-500.0,0.00012999,2]
[327240348,1715911848280,-500.0,0.00012999,2]
[327240349,1715911848290,-314.43287827,0.00012999,2]
[327240350,1715911848299,-162.981365,0.00012999,2]
[327240351,1715911848308,-151.0,0.00012999,2]
[327240352,1715911848317,-162.981365,0.00012999,2]
[327240353,1715911848327,-151.0,0.00012999,2]
[327240354,1715911848336,-500.0,0.00012999,2]
[327240355,1715911848345,-500.0,0.00012999,2]
[327240356,1715911848354,-500.0,0.00012999,2]
[327240357,1715911848364,-500.0,0.00012999,2]
[327240358,1715911848373,-500.0,0.00012999,2]
[327240359,1715911848384,-500.0,0.00012999,2]
[327240360,1715911848394,-500.0,0.00012999,2]
[327240361,1715911848403,-500.0,0.00012999,2]
[327240362,1715911848412,-500.0,0.00012999,2]
[327240363,1715911848421,-500.0,0.00012999,2]
[327240364,1715911848430,-500.0,0.00012999,2]
[327240365,1715911848440,-500.0,0.00012999,2]
[327240366,1715911848449,-500.0,0.00012999,2]
[327240367,1715911848459,-500.0,0.00012999,2]
[327240368,1715911848468,-500.0,0.00012999,2]
[327240369,1715911848478,-518.90147325,0.00012999,2]
[327240370,1715911848488,-160.0,0.00012999,2]
[327240371,1715911848498,-2326.24,0.00012999,2]
[327240372,1715911848507,-2326.24,0.00012999,2]
[327240373,1715911848517,-500.0,0.00012999,2]
[327240374,1715911848526,-500.0,0.00012999,2]
[327240375,1715911848535,-500.0,0.00012999,2]
[327240376,1715911848545,-500.0,0.00012999,2]
[327240377,1715911848554,-486.09640362,0.00012999,2]
[327240378,1715911848564,-652.24,0.00012999,2]
[327240379,1715911848574,-652.24,0.00012999,2]
[327240380,1715911848584,-652.24,0.00012999,2]
[327240381,1715911848593,-652.24,0.00012999,2]
[327240382,1715911848603,-652.24,0.00012999,2]
[327240383,1715911848612,-652.24,0.00012999,2]
[327240384,1715911848622,-652.24,0.00012999,2]
[327240385,1715911848632,-652.24,0.00012999,2]
[327240386,1715911848641,-652.36804346,0.00012999,2]
[327240387,1715911848651,-707.12,0.00012999,2]
[327240388,1715911848661,-707.12,0.00012999,2]
[327240389,1715911848670,-707.12,0.00012999,2]
[327240390,1715911848680,-707.12,0.00012999,2]
[327240391,1715911848690,-707.12,0.00012999,2]
[327240392,1715911848700,-707.12,0.00012999,2]
[327240393,1715911848709,-707.12,0.00012999,2]
[327240394,1715911848720,-707.12,0.00012999,2]
[327240395,1715911848729,-707.35689211,0.00012999,2]
[327240396,1715911848739,-500.0,0.00012999,2]
[327240397,1715911848748,-500.0,0.00012999,2]
[327240398,1715911848758,-500.0,0.00012999,2]
[327240399,1715911848768,-500.0,0.00012999,2]
[327240400,1715911848777,-426.28004632,0.00012999,2]
[327240401,1715911848787,-532.2507905,0.00012999,2]
[327240402,1715911848797,-126549.9243867,0.00013,2]
[327240403,1715911848848,-1838.75385252,0.00013,2]
[327240404,1715911848859,-662.38136993,0.00013,2]
[327240405,1715911848970,-150.409,0.00012898,2]
[327240406,1715911848980,-668.62369908,0.00013,2]
[327240407,1715911848997,-626.08111507,0.00013,2]
[327240408,1715911849008,-176898.38301689,0.00013,2]
[327240409,1715911849019,-1309.99765462,0.00013,2]
[327240410,1715911849038,-784.18,0.00013,2]
[327240411,1715911849049,-2203.44980342,0.00013,2]
[327240412,1715911849060,-6231.59735195,0.00013,2]
[327240420,1715912445986,151.0,0.00020469,120]
[327240433,1715913032080,-515.9728112,8.907e-05,2]
[327240434,1715913032090,-2956.81,8.912e-05,2]
[327240435,1715913032102,-345.8281,0.00010646,2]
[327240436,1715913032111,-255.3503,0.00010646,2]
[327240437,1715913032122,-990.6845,0.00010646,2]
[327240438,1715913032133,-250.0,0.00010799,2]
[327240439,1715913032142,-508.71082181,0.00010811,2]
[327240440,1715913032154,-491.28917819,0.00010811,2]
[327240441,1715913032165,-1525.36,0.00010878,2]
[327240442,1715913032176,-186.31,0.00010926,2]
[327240443,1715913032187,-1547.59,0.00010957,15]
[327240444,1715913032198,-367.68132801,0.00010958,2]
[327240445,1715913032208,-517.69696046,0.00010958,2]
[327240446,1715913032217,-436.4188047,0.00010958,2]
[327240447,1715913032227,-500.0,0.00010958,2]
[327240448,1715913032237,-264.57140044,0.00010958,2]
[327240449,1715913032247,-500.0,0.00010958,2]
[327240450,1715913032261,-636.47115168,0.00010958,2]
[327240451,1715913032272,-514.27043739,0.00010958,2]
[327240452,1715913032282,-3005.0,0.00010959,2]
[327240453,1715913032293,-200.0,0.00011,2]
[327240454,1715913032302,-168.33,0.00011132,2]
[327240455,1715913032312,-934.63,0.00011142,2]
[327240456,1715913032323,-2956.81,0.00011176,2]
[327240457,1715913032334,-1223.43879391,0.00011233,2]
[327240458,1715913032358,-21.69982509,0.00011233,2]
[327240459,1715913032369,-174.649327,0.00011233,2]
[327240460,1715913032379,-223.018861,0.00011233,2]
[327240461,1715913032390,-174.649326,0.00011233,2]
[327240462,1715913032400,-185.84905,0.00011233,2]
[327240463,1715913032411,-118.66389546,0.0001136,2]
[327240464,1715913032423,-31.33610454,0.0001136,2]
[327240465,1715913032434,-965.98411921,0.00011374,2]
[327240466,1715913032446,-279.15449979,0.00011374,2]
[327240467,1715913032456,-59.55257355,0.00011374,2]
[327240468,1715913032484,-163.46628745,0.00011374,2]
[327240469,1715913032494,-95.30222864,0.00011509,2]
[327240473,1715913038101,-656.27275998,8.906e-05,2]
[327240474,1715913038111,-500.0,0.00011513,2]
[327240475,1715913038121,-185.84905,0.00011514,2]
[327240476,1715913038132,-1245.138619,0.00011514,2]
[327240477,1715913038142,-223.018861,0.00011514,2]
[327240478,1715913038152,-1245.138619,0.00011654,2]
[327240479,1715913038162,-223.018861,0.00011654,2]
[327240480,1715913038172,-10000.0,0.00011693,2]
[327240481,1715913038182,-226.48,0.00011751,2]
[327240482,1715913038192,-174.649326,0.00011795,2]
[327240483,1715913038202,-185.84905,0.00011795,2]
[327240484,1715913038211,-1245.138619,0.00011795,2]
[327240485,1715913038221,-223.018861,0.00011795,2]
[327240486,1715913038231,-457.57537053,0.00011803,2]
[327240487,1715913038240,-1005.23842867,0.00011804,2]
[327240488,1715913038254,-800.0,0.00011918,2]
[327240489,1715913038264,-1000.0,0.00011955,2]
[327240490,1715913038273,-10000.0,0.00011955,2]
[327240491,1715913038283,-500.0,0.00012,2]
[327240492,1715913038295,-500.0,0.00012,2]